bitfinex-derivatives/quotes_SOLF0:USTF0_20241212
["timestamp","ask_amount","ask_price","bid_price","bid_amount"]
[1733965573719,6.51368556,227.88,227.69,2.8791]
[1733965573924,2.1932,227.8,227.77,6.51368556]
[1733965574224,8.59368556,227.84,227.77,6.51368556]
[1733965574426,6.51368556,227.84,227.77,6.51368556]
[1733965574619,2.08,227.83,227.77,6.51368556]
[1733965574929,4.273,227.83,227.77,6.51368556]
[1733965575225,2.08,227.83,227.77,6.51368556]
[1733965576629,6.51368556,227.82,227.73,2.1938]
[1733965576823,6.51368556,227.82,227.75,6.51368556]
[1733965577827,182.0310471,227.93,227.8,6.51368556]
[1733965578026,242.7080628,228.01,227.89,4.31468555]
[1733965578027,2.1918,227.95,227.89,4.31468555]
[1733965578723,2.08,227.94,227.89,4.31468555]
[1733965579325,4.2719,227.94,227.89,4.31468555]
[1733965581332,2.192,227.93,227.89,4.31468555]
[1733965584237,6.51368556,227.92,227.81,4.1862]
[1733965584537,6.51368556,227.9,227.81,6.3792]
[1733965584737,2.08,227.89,227.84,6.51368556]
[1733965585340,2.1926,227.87,227.84,6.51368556]
[1733965586440,4.2724,227.89,227.84,6.51368556]
[1733965586639,2.08,227.89,227.84,6.51368556]
[1733965587742,2.1925,227.88,227.84,6.51368556]
[1733965588440,1.3327,227.94,227.86,6.51368556]
[1733965588636,2.08,227.93,227.89,6.51368556]
[1733965588940,2.08,227.92,227.89,6.51368556]
[1733965589141,2.08,227.92,227.81,4.1862]
[1733965589340,2.1922,227.91,227.88,6.51368556]
[1733965589741,2.08,227.92,227.88,6.51368556]
[1733965589938,4.2721,227.92,227.88,6.51368556]
[1733965591242,4.2721,227.92,227.9,6.51368556]
[1733965591243,2.08,227.92,227.9,6.51368556]
[1733965592648,4.2721,227.92,227.9,6.51368556]
[1733965593241,2.1922,227.91,227.86,2.1926]
[1733965593442,2.1922,227.91,227.88,6.51368556]
[1733965597948,2.1923,227.9,227.84,2.1928]
[1733965598250,2.1923,227.9,227.88,6.51368556]
[1733965601845,6.51368556,227.89,227.71,2.08]
[1733965602053,6.51368556,227.89,227.64,54.07591289]
[1733965602054,6.51368556,227.83,227.74,5.27689365]
[1733965602249,2.1932,227.8,227.76,6.51368556]
[1733965602453,2.08,227.82,227.76,6.51368556]
[1733965602661,6.51368556,227.81,227.72,1.4132]
[1733965602843,2.1934,227.78,227.72,1.4132]
[1733965603147,6.51368556,227.79,227.72,1.4132]
[1733965603444,6.51368556,227.79,227.73,6.51368556]
[1733965603843,2.1937,227.76,227.73,6.51368556]
[1733965604040,6.51368556,227.79,227.73,6.51368556]
[1733965604447,2.1935,227.78,227.73,6.51368556]
[1733965604651,6.51368556,227.79,227.73,6.51368556]
[1733965604652,2.08,227.77,227.73,6.51368556]
[1733965605750,8.59368556,227.77,227.71,6.51368556]
[1733965606145,2.1937,227.75,227.71,6.51368556]
[1733965606844,2.1938,227.74,227.71,6.51368556]
[1733965610759,6.51368556,227.75,227.65,3.6467]
[1733965610945,6.51368556,227.73,227.65,1.452]
[1733965611153,6.51368556,227.71,227.65,6.51368556]
[1733965611351,2.08,227.7,227.65,6.51368556]
[1733965611851,2.1944,227.69,227.65,6.51368556]
[1733965613063,2.1944,227.68,227.65,6.51368556]
[1733965615265,2.1944,227.68,227.62,2.1949]
[1733965615462,2.1944,227.68,227.65,6.51368556]
[1733965616167,2.1943,227.69,227.65,6.51368556]
[1733965616372,2.08,227.7,227.65,6.51368556]
[1733965617063,6.51368556,227.69,227.59,5.14205413]
[1733965617368,6.51368556,227.67,227.61,6.51368556]
[1733965618067,2.1949,227.63,227.58,1.4599]
[1733965618269,6.51368556,227.65,227.57,4.9858]
[1733965618270,2.08,227.64,227.57,2.7904]
[1733965618461,6.51368556,227.63,227.57,2.7904]
[1733965618661,2.1953,227.59,227.55,6.51368556]
[1733965621569,50.0474,227.76,227.55,6.51368556]
[1733965621775,6.51368556,227.67,227.54,2.08]
[1733965621970,2.08,227.66,227.62,6.51368556]
[1733965622165,2.08,227.67,227.62,6.51368556]
[1733965622364,8.59368556,227.67,227.55,4.2997]
[1733965622670,8.59368556,227.67,227.6,6.51368556]
[1733965623572,2.1947,227.65,227.6,6.51368556]
[1733965623975,8.59368556,227.67,227.55,4.2997]
[1733965624166,8.59368556,227.67,227.6,6.51368556]
[1733965624873,2.1948,227.64,227.6,6.51368556]
[1733965625476,2.1951,227.61,227.55,6.4953]
[1733965625671,8.59368556,227.67,227.59,6.51368556]
[1733965625871,2.08,227.67,227.61,6.51368556]
[1733965626373,2.1947,227.65,227.61,6.51368556]
[1733965626677,2.08,227.67,227.61,6.51368556]
[1733965626874,2.08,227.66,227.61,6.51368556]
[1733965627073,2.08,227.66,227.55,4.2997]
[1733965627074,2.08,227.69,227.65,6.51368556]
[1733965627279,2.08,227.68,227.65,6.51368556]
[1733965627473,6.51368556,227.71,227.65,6.51368556]
[1733965627675,2.08,227.71,227.67,6.51368556]
[1733965628175,2.1942,227.7,227.67,6.51368556]
[1733965628479,2.1942,227.7,227.65,6.51368556]
[1733965631269,2.08,227.71,227.65,6.51368556]
[1733965631474,6.51368556,227.7,227.59,2.08]
[1733965631874,6.51368556,227.7,227.62,6.51368556]
[1733965632275,6.51368556,227.68,227.62,6.51368556]
[1733965632580,6.51368556,227.68,227.6,6.51368556]
[1733965632781,2.1947,227.65,227.6,6.51368556]
[1733965632981,8.59368556,227.66,227.6,6.51368556]
[1733965633177,2.08,227.65,227.58,6.51368556]
[1733965633682,2.1949,227.63,227.58,6.51368556]
[1733965633874,2.08,227.65,227.58,6.51368556]
[1733965634079,2.195,227.62,227.58,6.51368556]
[1733965634880,2.195,227.62,227.56,2.1955]
[1733965635077,2.195,227.62,227.58,6.51368556]
[1733965635575,2.1953,227.59,227.56,6.51368556]
[1733965635781,2.1953,227.59,227.55,4.2997]
[1733965635782,2.08,227.65,227.55,4.2997]
[1733965636085,6.51368556,227.62,227.55,4.2997]
[1733965636878,2.08,227.65,227.55,4.2997]
[1733965636879,6.51368556,227.6,227.55,4.2997]
[1733965637077,6.51368556,227.62,227.56,6.51368556]
[1733965637579,2.1952,227.6,227.56,6.51368556]
[1733965637771,4.2752,227.6,227.56,6.51368556]
[1733965638175,8.59368556,227.6,227.55,4.2997]
[1733965639283,2.1951,227.61,227.56,6.51368556]
[1733965639473,2.08,227.63,227.59,6.51368556]
[1733965639978,4.2749,227.63,227.59,6.51368556]
[1733965640183,10.78858556,227.63,227.57,6.51368556]
[1733965640775,10.78858556,227.63,227.57,8.70908556]
[1733965641476,6.51368556,227.63,227.58,2.1953]
[1733965641687,2.08,227.67,227.61,6.51368556]
[1733965641982,6.51368556,227.63,227.57,6.51368556]
[1733965642183,6.51368556,227.63,227.47,24.43566709]
[1733965642184,6.51368556,227.59,227.43,6.10891677]
[1733965642497,6.51368556,227.52,227.45,2.7715]
[1733965642683,2.08,227.51,227.46,6.51368556]
[1733965643281,4.2761,227.51,227.46,6.51368556]
[1733965643484,2.08,227.51,227.46,8.71018556]
[1733965644680,2.8155,227.66,227.5,6.51368556]
[1733965644984,6.51368556,227.57,227.52,6.51368556]
[1733965645282,2.8155,227.66,227.45,2.7715]
[1733965645283,2.1956,227.55,227.49,2.1962]
[1733965645481,4.2756,227.55,227.49,2.1962]
[1733965646382,10.19502535,227.61,227.48,10.19502535]
[1733965646683,2.08,227.6,227.51,10.19502535]
[1733965646985,2.08,227.59,227.51,10.19502535]
[1733965647579,4.2753,227.59,227.53,2.1958]
[1733965647780,2.1953,227.59,227.53,2.1958]
[1733965647981,2.08,227.58,227.54,2.1957]
[1733965648986,2.1954,227.57,227.52,2.1959]
[1733965649182,2.08,227.58,227.51,10.19502535]
[1733965649387,2.08,227.58,227.48,10.19502535]
[1733965649581,2.1956,227.55,227.48,10.19502535]
[1733965649985,2.1958,227.53,227.49,2.1962]
[1733965650182,12.27502535,227.58,227.45,2.7715]
[1733965651487,12.27502535,227.58,227.47,2.1963]
[1733965651792,2.08,227.58,227.47,10.19502535]
[1733965651997,2.08,227.58,227.5,10.19502535]
[1733965653291,2.08,227.58,227.53,2.1957]
[1733965653996,4.2754,227.58,227.53,2.1957]
[1733965654200,2.08,227.58,227.47,10.19502535]
[1733965654688,2.08,227.57,227.47,10.19502535]
[1733965654898,2.1956,227.55,227.5,2.1961]
[1733965656193,2.1957,227.54,227.46,10.19502535]
[1733965656393,2.08,227.57,227.46,10.19502535]
[1733965657596,2.1959,227.53,227.48,2.1963]
[1733965659199,2.196,227.51,227.46,12.39142535]
[1733965659393,2.196,227.51,227.46,2.1964]
[1733965661096,2.08,227.52,227.44,2.1966]
[1733965661396,10.19502535,227.51,227.38,2.7729]
[1733965661898,10.19502535,227.48,227.38,2.7729]
[1733965662193,2.1967,227.45,227.38,4.9701]
[1733965662396,2.08,227.47,227.38,4.9701]
[1733965662800,2.1967,227.44,227.38,4.9701]
[1733965663295,2.1967,227.44,227.39,2.1971]
[1733965664195,2.1967,227.44,227.38,2.7729]
[1733965665101,2.1967,227.44,227.38,4.9701]
[1733965665593,2.08,227.47,227.38,2.7729]
[1733965666896,4.2764,227.47,227.38,2.7729]
[1733965667291,2.1964,227.47,227.38,2.7729]
[1733965667490,4.2764,227.47,227.38,2.7729]
[1733965667898,2.1965,227.46,227.38,2.7729]
[1733965668695,2.1965,227.46,227.42,2.1968]
[1733965670200,2.08,227.47,227.38,2.7729]
[1733965670497,2.08,227.47,227.42,2.1969]
[1733965670889,2.1965,227.46,227.42,2.1969]
[1733965671090,2.08,227.47,227.38,2.7729]
[1733965671395,2.08,227.47,227.41,2.197]
[1733965672099,2.08,227.47,227.39,2.1971]
[1733965672600,2.1968,227.44,227.39,2.1972]
[1733965672899,2.08,227.47,227.38,2.7729]
[1733965673297,6.53188178,227.45,227.39,6.53188178]
[1733965673598,2.1968,227.43,227.39,6.53188178]
[1733965673795,6.53188178,227.45,227.39,6.53188178]
[1733965674800,8.61188178,227.47,227.39,6.53188178]
[1733965675200,2.1966,227.45,227.39,8.72908178]
[1733965680603,2.1968,227.44,227.39,8.72908178]
[1733965681202,8.61188178,227.47,227.35,6.77867071]
[1733965681504,2.1969,227.42,227.38,6.53188178]
[1733965682507,2.1,227.41,227.36,8.72928178]
[1733965683101,2.1,227.41,227.36,6.53188178]
[1733965683402,2.1972,227.39,227.35,6.53188178]
[1733965684808,2.1972,227.39,227.35,8.72948178]
[1733965685000,2.1,227.41,227.37,6.53188178]
[1733965685203,2.1,227.41,227.39,6.53188178]
[1733965686312,9.53530096,227.56,227.39,6.53188178]
[1733965686509,2.1966,227.45,227.4,2.1971]
[1733965686810,2.1,227.44,227.4,2.1971]
[1733965688010,9.53530096,227.56,227.41,6.53188178]
[1733965688209,6.53188178,227.5,227.43,6.53188178]
[1733965688508,2.1,227.49,227.45,6.53188178]
[1733965688707,2.1,227.51,227.45,8.72848178]
[1733965688907,8.72788178,227.52,227.45,8.72848178]
[1733965689111,2.1,227.51,227.45,8.72848178]
[1733965689717,4.2961,227.51,227.45,8.72848178]
[1733965691216,2.1,227.51,227.45,8.72848178]
[1733965691417,2.1,227.51,227.45,6.53188178]
[1733965692011,6.53188178,227.5,227.43,6.53188178]
[1733965692217,6.53188178,227.48,227.41,6.53188178]
[1733965692412,6.53188178,227.46,227.41,6.53188178]
[1733965692917,8.72838178,227.46,227.41,6.53188178]
[1733965693121,10.80838178,227.46,227.41,6.53188178]
[1733965693824,10.80838178,227.46,227.35,2.08]
[1733965693825,6.53188178,227.44,227.35,2.08]
[1733965694021,6.53188178,227.42,227.32,2.7291]
[1733965694226,6.53188178,227.42,227.35,8.72938178]
[1733965694420,2.1971,227.4,227.35,6.53188178]
[1733965695024,2.1971,227.4,227.35,8.72948178]
[1733965695223,2.1972,227.39,227.32,2.7291]
[1733965695438,2.1972,227.39,227.34,6.53188178]
[1733965696724,2.1972,227.39,227.34,8.72948178]
[1733965698025,2.1972,227.39,227.35,2.1975]
[1733965700031,2.1973,227.38,227.35,2.1975]
[1733965700330,2.1973,227.38,227.34,6.53188178]
[1733965700627,2.1973,227.38,227.34,8.72948178]
[1733965701331,2.08,227.41,227.34,8.72948178]
[1733965701626,2.08,227.41,227.36,6.53188178]
[1733965701824,6.53188178,227.44,227.38,6.53188178]
[1733965702025,6.53188178,227.44,227.35,2.1976]
[1733965702026,6.53188178,227.4,227.35,2.1976]
[1733965702324,6.53188178,227.42,227.35,2.1976]
[1733965702528,2.1972,227.4,227.36,6.53188178]
[1733965703526,2.197,227.42,227.38,6.53188178]
[1733965704029,2.197,227.41,227.38,6.53188178]
[1733965704229,6.53188178,227.46,227.38,6.53188178]
[1733965704430,2.08,227.45,227.38,6.53188178]
[1733965704631,6.53188178,227.46,227.32,2.7291]
[1733965704632,2.1964,227.47,227.42,6.53188178]
[1733965704833,2.1964,227.47,227.42,8.72878178]
[1733965707729,2.1964,227.47,227.43,2.1968]
[1733965708137,8.61188178,227.48,227.33,24.43566709]
[1733965708138,2.08,227.48,227.33,24.43566709]
[1733965708332,6.53188178,227.43,227.32,2.7291]
[1733965708531,8.61188178,227.43,227.35,6.53188178]
[1733965708727,2.197,227.41,227.35,6.53188178]
[1733965709031,2.197,227.41,227.36,2.1974]
[1733965709432,2.197,227.41,227.32,2.7291]
[1733965709433,2.08,227.43,227.37,6.53188178]
[1733965709831,2.08,227.43,227.35,6.53188178]
[1733965710024,6.53188178,227.42,227.35,6.53188178]
[1733965710333,2.1971,227.41,227.36,2.1974]
[1733965710832,6.53188178,227.42,227.36,2.1974]
[1733965711033,2.1971,227.4,227.36,2.1974]
[1733965711240,6.53188178,227.42,227.36,2.1974]
[1733965711432,2.197,227.41,227.36,2.1974]
[1733965711631,6.53188178,227.42,227.37,2.1973]
[1733965711936,9.53530096,227.56,227.37,6.53188178]
[1733965712139,6.53188178,227.46,227.4,2.1971]
[1733965713737,2.1966,227.45,227.4,2.1971]
[1733965714940,6.53188178,227.44,227.4,2.1971]
[1733965715140,8.72858178,227.44,227.38,2.1972]
[1733965715541,6.53188178,227.42,227.36,2.08]
[1733965715741,8.72888178,227.42,227.37,2.1974]
[1733965717739,2.1968,227.44,227.38,2.1972]
[1733965718137,6.53188178,227.43,227.38,2.1972]
[1733965718338,2.1968,227.44,227.39,2.1972]
[1733965718545,6.53188178,227.45,227.38,6.53188178]
[1733965718939,6.53188178,227.43,227.39,2.1971]
[1733965719447,6.53188178,227.43,227.36,6.53188178]
[1733965719658,8.72868178,227.43,227.37,2.1973]
[1733965720045,8.72868178,227.43,227.36,6.53188178]
[1733965720046,8.72868178,227.43,227.38,2.1972]
[1733965720656,6.53188178,227.41,227.36,2.1974]
[1733965721749,8.72888178,227.41,227.36,2.1974]
[1733965722955,2.1968,227.43,227.37,6.53188178]
[1733965723151,6.53188178,227.44,227.38,6.53188178]
[1733965723351,2.12,227.45,227.38,6.53188178]
[1733965723557,2.12,227.45,227.33,2.08]
[1733965723558,8.72868178,227.44,227.33,2.08]
[1733965723757,8.72868178,227.44,227.38,6.53188178]
[1733965725453,8.72868178,227.44,227.38,8.72908178]
[1733965726360,8.72868178,227.44,227.38,2.1972]
[1733965726755,6.53188178,227.42,227.38,2.1972]
[1733965726959,6.53188178,227.42,227.36,2.1974]
[1733965727361,6.53188178,227.4,227.33,8.61188178]
[1733965727753,6.53188178,227.4,227.35,2.1975]
[1733965728358,2.1972,227.39,227.33,10.80958178]
[1733965728566,2.1972,227.39,227.33,8.61188178]
[1733965729264,6.53188178,227.4,227.33,6.53188178]
[1733965729466,8.72918178,227.38,227.33,6.53188178]
[1733965729664,6.53188178,227.38,227.32,2.7291]
[1733965730163,2.1975,227.36,227.32,2.7291]
[1733965730862,2.1977,227.33,227.26,60.69942751]
[1733965731061,2.1977,227.33,227.28,6.53188178]
[1733965732563,2.1977,227.33,227.28,8.73008178]
[1733965732762,2.1977,227.33,227.28,6.53188178]
[1733965733667,2.1977,227.33,227.29,2.1981]
[1733965736163,2.1979,227.32,227.28,6.53188178]
[1733965736366,6.53188178,227.32,227.27,2.1983]
[1733965737065,2.198,227.31,227.26,8.73028178]
[1733965737264,6.53188178,227.32,227.25,2.7081]
[1733965737459,2.12,227.35,227.25,2.7081]
[1733965737460,6.53188178,227.3,227.25,2.7081]
[1733965738060,8.72988178,227.3,227.26,6.53188178]
[1733965740559,6.53188178,227.3,227.26,6.53188178]
[1733965740771,2.1979,227.31,227.26,6.53188178]
[1733965741064,6.53188178,227.31,227.26,6.53188178]
[1733965741262,8.73008178,227.29,227.23,3.5591]
[1733965741464,8.73008178,227.29,227.23,10.09098178]
[1733965742263,6.53188178,227.29,227.23,10.09098178]
[1733965742460,2.1983,227.28,227.23,8.73058178]
[1733965742665,6.53188178,227.27,227.23,8.73058178]
[1733965743173,6.53188178,227.25,227.19,6.53188178]
[1733965743671,2.1986,227.24,227.19,8.73088178]
[1733965744578,2.1986,227.24,227.2,2.199]
[1733965744767,2.1986,227.24,227.16,2.12]
[1733965744768,6.53188178,227.21,227.14,5.29997676]
[1733965744973,6.53188178,227.21,227.14,6.53188178]
[1733965746575,2.1991,227.19,227.14,8.73148178]
[1733965748970,2.12,227.23,227.16,6.53188178]
[1733965749175,8.65188178,227.23,227.16,6.53188178]
[1733965750580,2.1989,227.22,227.16,8.73128178]
[1733965750978,8.65188178,227.23,227.12,6.82339115]
[1733965750979,8.65188178,227.23,227.18,6.53188178]
[1733965751286,2.8165,227.37,227.2,6.53188178]
[1733965751287,6.53188178,227.27,227.2,6.53188178]
[1733965751483,2.12,227.26,227.2,6.53188178]
[1733965752275,4.3184,227.26,227.2,8.73088178]
[1733965754170,4.3184,227.26,227.2,2.199]
[1733965754369,4.3184,227.26,227.2,8.73088178]
[1733965755177,4.3184,227.26,227.21,2.1989]
[1733965758483,4.3184,227.26,227.2,8.73088178]
[1733965759082,6.53188178,227.25,227.2,6.53188178]
[1733965759385,8.73048178,227.25,227.2,6.53188178]
[1733965760183,8.73048178,227.25,227.2,8.73078178]
[1733965760581,2.12,227.26,227.22,2.1988]
[1733965761684,4.3184,227.26,227.22,2.1988]
[1733965764290,2.1982,227.29,227.24,2.1986]
[1733965764487,10.81008178,227.29,227.22,6.53188178]
[1733965765691,10.81008178,227.29,227.24,2.1986]
[1733965766289,2.08,227.3,227.24,6.53188178]
[1733965766590,6.53188178,227.31,227.24,6.53188178]
[1733965766591,2.08,227.31,227.24,6.53188178]
[1733965766792,2.08,227.31,227.26,6.53188178]
[1733965767696,2.08,227.31,227.27,2.1983]
[1733965768885,6.53188178,227.32,227.26,6.53188178]
[1733965769094,6.53188178,227.32,227.28,2.1982]
[1733965769296,6.53188178,227.3,227.24,6.53188178]
[1733965770589,6.53188178,227.3,227.26,2.1984]
[1733965772291,2.08,227.34,227.24,6.53188178]
[1733965772492,6.53188178,227.32,227.26,6.53188178]
[1733965775002,6.53188178,227.3,227.24,6.53188178]
[1733965775797,6.53188178,227.3,227.22,2.08]
[1733965775999,2.1981,227.29,227.22,8.61188178]
[1733965776301,6.53188178,227.28,227.22,6.53188178]
[1733965776596,6.53188178,227.26,227.2,6.53188178]
[1733965776798,6.53188178,227.26,227.22,2.1987]
[1733965777097,6.53188178,227.26,227.19,6.53188178]
[1733965777899,2.1986,227.25,227.21,2.1988]
[1733965778095,2.1986,227.25,227.19,6.53188178]
[1733965779102,8.73028178,227.26,227.22,2.1988]
[1733965779808,10.81008178,227.28,227.24,2.1986]
[1733965780799,2.08,227.28,227.21,6.53188178]
[1733965781007,2.8165,227.37,227.21,2.08]
[1733965781305,6.53188178,227.31,227.24,6.53188178]
[1733965781603,6.53188178,227.31,227.27,2.1982]
[1733965781802,2.08,227.36,227.21,2.08]
[1733965781803,6.53188178,227.29,227.21,2.08]
[1733965781995,6.53188178,227.26,227.21,2.08]
[1733965782201,6.53188178,227.26,227.2,6.53188178]
[1733965783205,6.53188178,227.26,227.22,2.1987]
[1733965783706,6.53188178,227.24,227.22,2.1987]
[1733965783901,6.53188178,227.24,227.17,6.53188178]
[1733965784109,6.53188178,227.24,227.12,6.82339115]
[1733965784402,6.53188178,227.22,227.16,6.53188178]
[1733965785205,6.53188178,227.22,227.18,2.1991]
[1733965787599,6.53188178,227.22,227.19,2.1991]
[1733965789603,2.8165,227.37,227.2,6.53188178]
[1733965789815,6.53188178,227.27,227.2,6.53188178]
[1733965792211,6.53188178,227.27,227.22,6.53188178]
[1733965792412,6.53188178,227.27,227.23,2.1986]
[1733965793508,2.1983,227.28,227.23,2.1986]
[1733965793808,2.08,227.3,227.24,2.1986]
[1733965793809,6.53188178,227.27,227.24,2.1986]
[1733965794311,2.8165,227.37,227.24,6.53188178]
[1733965794507,6.53188178,227.31,227.24,6.53188178]
[1733965794708,2.8165,227.37,227.2,1.3679]
[1733965794709,2.08,227.32,227.2,1.3679]
[1733965794902,2.08,227.32,227.19,2.7575]
[1733965794903,6.53188178,227.27,227.19,2.7575]
[1733965795103,6.53188178,227.25,227.19,9.28938178]
[1733965795503,6.53188178,227.25,227.21,2.1989]
[1733965795704,6.53188178,227.25,227.19,9.28938178]
[1733965797907,6.53188178,227.25,227.14,1.3679]
[1733965798105,6.53188178,227.25,227.18,6.53188178]
[1733965798517,2.1988,227.22,227.18,8.73108178]
[1733965798716,6.53188178,227.21,227.14,1.3679]
[1733965798914,2.1991,227.19,227.16,6.53188178]
[1733965800715,2.199,227.2,227.16,6.53188178]
[1733965801608,6.53188178,227.21,227.16,6.53188178]
[1733965801808,6.53188178,227.21,227.14,6.53188178]
[1733965802017,6.53188178,227.19,227.02,24.43566709]
[1733965802209,2.1994,227.16,227.12,6.53188178]
[1733965802919,2.08,227.17,227.12,6.53188178]
[1733965803212,2.08,227.17,227.14,6.53188178]
[1733965803615,2.08,227.17,227.16,6.53188178]
[1733965803820,4.279,227.21,227.16,6.53188178]
[1733965804907,4.279,227.21,227.18,6.53188178]
[1733965805521,4.279,227.21,227.16,6.53188178]
[1733965807317,5.24375219,227.39,227.2,6.53188178]
[1733965807517,6.53188178,227.28,227.22,6.53188178]
[1733965807822,8.61188178,227.28,227.22,6.53188178]
[1733965808021,2.1984,227.26,227.22,6.53188178]
[1733965808216,6.53188178,227.26,227.2,6.53188178]
[1733965808418,2.1987,227.24,227.2,6.53188178]
[1733965809721,6.53188178,227.26,227.2,6.53188178]
[1733965811724,2.1986,227.25,227.2,6.53188178]
[1733965812516,2.1986,227.24,227.2,6.53188178]
[1733965814018,6.53188178,227.26,227.16,2.08]
[1733965814327,6.53188178,227.24,227.17,6.53188178]
[1733965814522,2.08,227.23,227.17,6.53188178]
[1733965815725,2.199,227.21,227.17,6.53188178]
[1733965816026,2.08,227.23,227.17,6.53188178]
[1733965816222,2.1988,227.22,227.17,6.53188178]
[1733965816718,2.7054,227.36,227.2,2.199]
[1733965816719,2.1984,227.27,227.2,2.199]
[1733965816923,8.61188178,227.28,227.21,6.53188178]
[1733965817123,2.08,227.27,227.21,6.53188178]
[1733965817826,4.2784,227.27,227.21,6.53188178]
[1733965818225,4.2784,227.27,227.21,8.73078178]
[1733965819827,2.7054,227.36,227.25,6.53188178]
[1733965819828,2.1981,227.3,227.25,6.53188178]
[1733965820030,2.7054,227.36,227.27,6.53188178]
[1733965820031,6.53188178,227.33,227.27,6.53188178]
[1733965820225,2.08,227.33,227.27,6.53188178]
[1733965820425,6.53188178,227.32,227.26,6.53188178]
[1733965822325,2.198,227.31,227.26,6.53188178]
[1733965822828,2.198,227.31,227.22,2.08]
[1733965823024,6.53188178,227.32,227.26,2.1984]
[1733965823227,6.53188178,227.32,227.26,8.73028178]
[1733965824027,2.08,227.33,227.28,6.53188178]
[1733965824231,2.08,227.36,227.23,1.398]
[1733965824426,6.53188178,227.34,227.28,6.53188178]
[1733965824627,6.53188178,227.34,227.28,8.72998178]
[1733965825324,6.53188178,227.32,227.26,6.53188178]
[1733965826431,2.198,227.31,227.26,6.53188178]
[1733965826828,6.53188178,227.3,227.23,2.7609]
[1733965827036,2.08,227.36,227.18,1.3794]
[1733965827037,6.53188178,227.28,227.19,2.08]
[1733965827238,6.53188178,227.26,227.19,2.08]
[1733965827428,6.53188178,227.26,227.2,6.53188178]
[1733965829734,2.1986,227.24,227.2,6.53188178]
[1733965830633,2.1985,227.25,227.2,6.53188178]
[1733965832242,6.53188178,227.23,227.15,1.4009]
[1733965832433,2.08,227.22,227.16,6.53188178]
[1733965833027,2.08,227.21,227.16,6.53188178]
[1733965833734,4.279,227.21,227.16,6.53188178]
[1733965834235,4.279,227.21,227.18,6.53188178]
[1733965834730,4.279,227.21,227.15,1.4009]
[1733965834731,2.1986,227.25,227.2,6.53188178]
[1733965834933,4.2786,227.25,227.2,6.53188178]
[1733965835730,4.2786,227.25,227.2,8.73088178]
[1733965836134,2.08,227.25,227.22,6.53188178]
[1733965836638,2.08,227.26,227.22,6.53188178]
[1733965839638,2.1985,227.25,227.22,6.53188178]
[1733965842046,4.2785,227.25,227.22,6.53188178]
[1733965842545,2.08,227.25,227.22,8.73058178]
[1733965842839,6.53188178,227.29,227.22,6.53188178]
[1733965843036,6.53188178,227.29,227.16,2.08]
[1733965843037,6.53188178,227.31,227.26,6.53188178]
[1733965843237,2.08,227.3,227.26,6.53188178]
[1733965843642,4.2781,227.3,227.26,6.53188178]
[1733965843941,2.08,227.3,227.24,6.53188178]
[1733965844142,2.1982,227.29,227.24,8.73048178]
[1733965844339,6.53188178,227.29,227.24,6.53188178]
[1733965845744,2.1983,227.27,227.24,6.53188178]
[1733965846539,6.53188178,227.29,227.24,6.53188178]
[1733965846742,2.1982,227.28,227.24,6.53188178]
[1733965850447,2.1984,227.27,227.24,6.53188178]
[1733965852253,2.1982,227.29,227.24,8.73048178]
[1733965852944,2.1982,227.28,227.24,8.73048178]
[1733965853550,2.1984,227.27,227.22,2.1987]
[1733965853750,2.1984,227.27,227.23,6.53188178]
[1733965854446,6.53188178,227.29,227.23,6.53188178]
[1733965855352,5.39846363,227.31,227.25,6.53188178]
[1733965855752,1.416,227.39,227.29,6.53188178]
[1733965855964,8.61188178,227.39,227.32,6.53188178]
[1733965856154,6.53188178,227.38,227.32,6.53188178]
[1733965856452,6.53188178,227.34,227.26,2.08]
[1733965856646,6.53188178,227.34,227.28,6.53188178]
[1733965856846,2.08,227.39,227.28,6.53188178]
[1733965857354,6.53188178,227.34,227.28,6.53188178]
[1733965858052,5.2793434,227.38,227.26,6.53188178]
[1733965858053,6.53188178,227.32,227.26,6.53188178]
[1733965858255,5.2793434,227.38,227.25,7.97768178]
[1733965858256,6.53188178,227.3,227.25,7.97768178]
[1733965858448,6.53188178,227.3,227.25,6.53188178]
[1733965859155,6.53188178,227.3,227.23,6.53188178]